bitfinex-derivatives/quotes_BTCF0:USTF0_20251225
["timestamp","ask_amount","ask_price","bid_price","bid_amount"]
[1766644821660,0.011396,87812.0,87800.0,0.03]
[1766644821960,0.02493634,87811.0,87800.0,0.03]
[1766644822160,0.02493634,87810.0,87800.0,0.03]
[1766644822373,0.011396,87812.0,87800.0,0.03]
[1766644822559,0.02493635,87811.0,87800.0,0.03]
[1766644822860,0.02493635,87810.0,87800.0,0.03]
[1766644823056,0.00017085,87816.0,87800.0,0.03]
[1766644823256,0.02493641,87815.0,87800.0,0.03]
[1766644823469,0.02493641,87814.0,87800.0,0.03]
[1766644823770,0.02493641,87813.0,87800.0,0.03]
[1766644823970,0.02493641,87812.0,87800.0,0.03]
[1766644824172,0.03633251,87811.0,87800.0,0.03]
[1766644824375,0.02493641,87810.0,87800.0,0.03]
[1766644829474,0.0113961,87811.0,87800.0,0.03]
[1766644829674,0.02493769,87810.0,87800.0,0.03]
[1766644829875,0.0113961,87811.0,87800.0,0.03]
[1766644830075,0.02493772,87810.0,87800.0,0.03]
[1766644830268,0.00017085,87816.0,87800.0,0.03]
[1766644830468,0.02493772,87815.0,87800.0,0.03]
[1766644830769,0.02493772,87814.0,87800.0,0.03]
[1766644831076,0.02493772,87813.0,87800.0,0.03]
[1766644831374,0.02493772,87812.0,87800.0,0.03]
[1766644831574,0.02493772,87811.0,87800.0,0.03]
[1766644831774,0.02493772,87810.0,87800.0,0.03]
[1766644831978,0.00017085,87816.0,87800.0,0.03]
[1766644832181,0.02493778,87815.0,87800.0,0.03]
[1766644832367,0.02493778,87814.0,87800.0,0.03]
[1766644832566,0.00017085,87816.0,87800.0,0.03]
[1766644832771,0.0249379,87815.0,87800.0,0.03]
[1766644833074,0.0249379,87814.0,87800.0,0.03]
[1766644833275,0.0363338,87813.0,87800.0,0.03]
[1766644833477,0.0249379,87812.0,87800.0,0.03]
[1766644835275,0.0249379,87811.0,87800.0,0.03]
[1766644835578,0.0249379,87810.0,87800.0,0.03]
[1766644835777,0.0113956,87814.0,87800.0,0.03]
[1766644836077,0.02493814,87813.0,87800.0,0.03]
[1766644836265,0.02493814,87812.0,87801.0,0.0113973]
[1766644836466,0.02493814,87811.0,87801.0,0.0413973]
[1766644836677,0.02493814,87810.0,87801.0,0.0413973]
[1766644836863,0.01156625,87816.0,87801.0,0.0413973]
[1766644837069,0.0113956,87814.0,87801.0,0.0413973]
[1766644837375,0.02493816,87813.0,87801.0,0.03]
[1766644837778,0.02493816,87813.0,87801.0,0.0413972]
[1766644837981,0.02493816,87812.0,87801.0,0.0413972]
[1766644838177,0.00017085,87816.0,87801.0,0.0413972]
[1766644850288,0.02467171,87815.0,87801.0,0.0413972]
[1766644850587,0.02467171,87814.0,87801.0,0.0413972]
[1766644850788,0.02467171,87813.0,87801.0,0.0413972]
[1766644850993,0.02467171,87812.0,87801.0,0.0413972]
[1766644851287,0.02467171,87811.0,87801.0,0.0413972]
[1766644851488,0.00017085,87816.0,87801.0,0.0413972]
[1766644851789,0.02467169,87815.0,87801.0,0.0413972]
[1766644851989,0.02467169,87814.0,87801.0,0.0413972]
[1766644852191,0.02467169,87813.0,87801.0,0.0413972]
[1766644852380,0.02467169,87812.0,87801.0,0.0413972]
[1766644852581,0.02467169,87811.0,87801.0,0.0413972]
[1766644852791,0.00017085,87816.0,87801.0,0.0413972]
[1766644852993,0.02467168,87815.0,87801.0,0.0413972]
[1766644853198,0.02467168,87814.0,87801.0,0.0413972]
[1766644853403,0.02467168,87813.0,87801.0,0.0413972]
[1766644853587,0.02467168,87812.0,87801.0,0.0413972]
[1766644853788,0.02467168,87811.0,87801.0,0.0413972]
[1766644853988,0.00017085,87816.0,87801.0,0.0413972]
[1766644854188,0.02467166,87815.0,87801.0,0.0413972]
[1766644854388,0.02467166,87814.0,87801.0,0.0413972]
[1766644854588,0.02467166,87813.0,87801.0,0.0413972]
[1766644854801,0.02467166,87812.0,87801.0,0.0413972]
[1766644855096,0.02467166,87811.0,87801.0,0.0413972]
[1766644855296,0.00017085,87816.0,87801.0,0.0413972]
[1766644855499,0.02467168,87815.0,87801.0,0.0413972]
[1766644855697,0.02467168,87814.0,87801.0,0.0413972]
[1766644855897,0.02467168,87813.0,87801.0,0.0413972]
[1766644856087,0.02467168,87812.0,87801.0,0.0413972]
[1766644856288,0.02467168,87811.0,87801.0,0.0413972]
[1766644856490,0.02467168,87810.0,87801.0,0.0413972]
[1766644856790,0.00017085,87816.0,87801.0,0.0413972]
[1766644856991,0.02467168,87815.0,87801.0,0.0413972]
[1766644857190,0.02467168,87814.0,87801.0,0.0413972]
[1766644857392,0.02467168,87813.0,87801.0,0.0413972]
[1766644857600,0.02467168,87812.0,87801.0,0.0413972]
[1766644857812,0.02467168,87811.0,87801.0,0.0413972]
[1766644858012,0.02467168,87810.0,87801.0,0.0413972]
[1766644858215,0.00017085,87816.0,87801.0,0.0413972]
[1766644858413,0.02467173,87815.0,87801.0,0.0413972]
[1766644858613,0.02467173,87814.0,87801.0,0.0413972]
[1766644858808,0.00017085,87816.0,87801.0,0.0413972]
[1766644858809,0.02467173,87813.0,87801.0,0.0413972]
[1766644859014,0.02467173,87812.0,87801.0,0.0413972]
[1766644859214,0.02467173,87811.0,87801.0,0.0413972]
[1766644859416,0.02467173,87810.0,87801.0,0.0413972]
[1766644859614,0.00017085,87816.0,87801.0,0.0413972]
[1766644859816,0.02467176,87815.0,87801.0,0.0413972]
[1766644860010,0.02467176,87814.0,87801.0,0.0413972]
[1766644860209,0.02467176,87813.0,87801.0,0.0413972]
[1766644860410,0.00017085,87816.0,87801.0,0.0413972]
[1766644866926,8.5e-07,87816.0,87801.0,0.0413972]
[1766644868631,8.5e-07,87816.0,87803.0,0.011397]
[1766644868831,8.5e-07,87816.0,87803.0,0.041397]
[1766644872638,0.02474236,87815.0,87803.0,0.041397]
[1766644872933,0.02474236,87814.0,87803.0,0.041397]
[1766644873133,0.02474236,87813.0,87803.0,0.041397]
[1766644873335,0.02474236,87812.0,87803.0,0.041397]
[1766644873519,0.02474236,87811.0,87803.0,0.041397]
[1766644873723,8.5e-07,87816.0,87803.0,0.041397]
[1766644873939,0.02474217,87815.0,87803.0,0.041397]
[1766644874136,0.02474217,87814.0,87803.0,0.041397]
[1766644874436,0.02474217,87813.0,87803.0,0.041397]
[1766644874638,0.02474217,87812.0,87803.0,0.041397]
[1766644874934,0.02474217,87811.0,87803.0,0.041397]
[1766644875137,8.5e-07,87816.0,87803.0,0.041397]
[1766644875327,0.02474186,87815.0,87803.0,0.041397]
[1766644875526,0.02474186,87814.0,87803.0,0.041397]
[1766644875736,0.02474186,87813.0,87803.0,0.041397]
[1766644875935,0.02474186,87812.0,87803.0,0.041397]
[1766644876236,0.02474186,87811.0,87803.0,0.041397]
[1766644876427,8.5e-07,87816.0,87803.0,0.041397]
[1766644876629,0.02474175,87815.0,87803.0,0.041397]
[1766644876933,0.0113949,87820.0,87803.0,0.041397]
[1766644878041,0.01156543,87820.0,87803.0,0.041397]
[1766644899353,0.0113952,87818.0,87803.0,0.041397]
[1766644902956,0.00017053,87820.0,87803.0,0.041397]
[1766644903254,0.0113947,87821.0,87803.0,0.041397]
[1766644911571,0.04096192,87829.0,87803.0,0.03]
[1766644911775,0.0113945,87823.0,87807.0,0.0113964]
[1766644912071,0.0113945,87823.0,87807.0,0.0413964]
[1766644917871,0.0113948,87821.0,87807.0,0.03]
[1766644920982,0.011395,87819.0,87807.0,0.03]
[1766644922173,0.0113946,87822.0,87807.0,0.03]
[1766644924285,0.0113949,87820.0,87807.0,0.03]
[1766644927398,0.0113945,87823.0,87807.0,0.03]
[1766644927578,0.0113948,87821.0,87807.0,0.03]
[1766644928991,0.011395,87819.0,87807.0,0.03]
[1766644937495,0.0113952,87817.0,87807.0,0.03]
[1766644939892,0.0113948,87821.0,87807.0,0.03]
[1766644941101,0.011395,87819.0,87807.0,0.03]
[1766644942604,0.0113946,87822.0,87807.0,0.03]
[1766644942805,0.04096192,87825.0,87807.0,0.03]
[1766644944204,0.0113949,87820.0,87807.0,0.03]
[1766644949813,0.04096192,87825.0,87807.0,0.03]
[1766644949998,0.04096192,87824.0,87807.0,0.03]
[1766644950308,0.0113951,87818.0,87807.0,0.03]
[1766644952001,0.0113948,87821.0,87807.0,0.03]
[1766644952204,0.011395,87819.0,87807.0,0.03]
[1766644952405,0.04096192,87824.0,87807.0,0.03]
[1766644952606,0.011396,87812.0,87806.0,0.057]
[1766644952813,0.0113963,87809.0,87806.0,0.02]
[1766644953011,0.0113963,87809.0,87801.0,0.01768352]
[1766644953312,0.0113963,87809.0,87801.0,0.04768352]
[1766644954412,0.0113958,87813.0,87801.0,0.04768352]
[1766644955220,0.0113958,87813.0,87801.0,0.03]
[1766644955722,0.0113961,87811.0,87801.0,0.03]
[1766644958026,0.0113964,87809.0,87801.0,0.03]
[1766644958622,0.0113959,87812.0,87801.0,0.03]
[1766644962826,0.0113962,87810.0,87801.0,0.03]
[1766644963611,0.0113965,87808.0,87801.0,0.03]
[1766644963817,0.0113965,87808.0,87801.0,0.00672374]
[1766644964226,0.02436,87820.0,87801.0,4e-08]
[1766644964527,0.02436,87820.0,87799.0,9e-08]
[1766644964528,0.0113971,87803.0,87799.0,9e-08]
[1766644964726,0.0113971,87803.0,87799.0,0.03000009]
[1766644964927,0.0113971,87803.0,87799.0,0.03]
[1766644965813,0.0113971,87803.0,87792.0,0.00017085]
[1766644966128,0.0113971,87803.0,87792.0,0.01017085]
[1766644971430,0.01416,87810.0,87792.0,0.01017085]
[1766644972229,0.0113953,87817.0,87792.0,0.01017085]
[1766644972419,0.0113963,87810.0,87792.0,0.02156925]
[1766644972618,0.03610693,87816.0,87792.0,0.02156925]
[1766644972619,0.01148,87816.0,87792.0,0.02156925]
[1766644972819,0.0113965,87808.0,87792.0,0.02156925]
[1766644977228,0.01148,87816.0,87792.0,0.01017085]
[1766644977434,0.011396,87811.0,87794.0,0.0113982]
[1766644977639,0.011396,87811.0,87794.0,0.0413982]
[1766644979735,0.011396,87811.0,87796.0,0.0113979]
[1766644979934,0.011396,87811.0,87796.0,0.0413979]
[1766644981228,0.0113962,87810.0,87796.0,0.03]
[1766644985936,0.0113966,87807.0,87796.0,0.03]
[1766644992344,0.0113969,87805.0,87796.0,0.03]
[1766644996250,0.0113972,87803.0,87796.0,0.03]
[1766644999555,0.0113967,87806.0,87796.0,0.03]
[1766645007659,0.011397,87804.0,87796.0,0.03]
[1766645012474,0.01516,87816.0,87796.0,0.03]
[1766645012766,0.0113964,87808.0,87796.0,0.03]
[1766645013569,0.011396,87811.0,87796.0,0.03]
[1766645013768,0.02473375,87810.0,87796.0,0.03]
[1766645013979,0.02473375,87809.0,87796.0,0.03]
[1766645014282,0.02473375,87808.0,87796.0,0.03]
[1766645014469,0.011396,87811.0,87796.0,0.03]
[1766645014780,0.02473383,87810.0,87796.0,0.03]
[1766645014970,0.02473383,87809.0,87796.0,0.03]
[1766645015166,0.011396,87811.0,87796.0,0.03]
[1766645015366,0.02473384,87810.0,87796.0,0.03]
[1766645015676,0.02473384,87809.0,87796.0,0.03]
[1766645015886,0.0113957,87814.0,87796.0,0.03]
[1766645016176,0.02473384,87813.0,87796.0,0.03]
[1766645016367,0.02473384,87812.0,87796.0,0.03]
[1766645016568,0.02473384,87811.0,87796.0,0.03]
[1766645016769,0.02473384,87810.0,87796.0,0.03]
[1766645016981,0.02473384,87809.0,87796.0,0.03]
[1766645017169,0.0113957,87814.0,87796.0,0.03]
[1766645017370,0.02473331,87813.0,87796.0,0.03]
[1766645017672,0.02473331,87812.0,87796.0,0.03]
[1766645017867,0.02473331,87811.0,87796.0,0.03]
[1766645018067,0.02473331,87810.0,87796.0,0.03]
[1766645018272,0.00017076,87819.0,87796.0,0.03]
[1766645018580,0.0113949,87820.0,87796.0,0.03]
[1766645019173,0.0113952,87818.0,87796.0,0.03]
[1766645020182,0.0113955,87816.0,87798.0,0.0113977]
[1766645020481,0.0113955,87816.0,87798.0,0.0413977]
[1766645024483,0.0113955,87816.0,87800.0,0.0113974]
[1766645024682,0.0113955,87816.0,87801.0,0.057]
[1766645024883,0.0113955,87816.0,87801.0,0.087]
[1766645029389,0.0113957,87814.0,87801.0,0.087]
[1766645043901,0.011396,87812.0,87801.0,0.087]
[1766645047204,0.04096192,87823.0,87801.0,0.087]
[1766645048208,0.0113952,87818.0,87801.0,0.087]
[1766645055597,0.0113952,87818.0,87802.0,0.0113971]
[1766645055798,0.0113952,87818.0,87802.0,0.0413971]
[1766645059000,0.0113952,87818.0,87804.0,0.0113969]
[1766645059201,0.0113952,87818.0,87804.0,0.0413969]
[1766645059798,0.0113948,87821.0,87804.0,0.0413969]
[1766645069534,0.011395,87819.0,87804.0,0.0413969]
[1766645072828,0.011395,87819.0,87804.0,0.03]
[1766645073629,0.0113954,87816.0,87804.0,0.03]
[1766645075035,0.011395,87819.0,87804.0,0.03]
[1766645076134,0.0113953,87817.0,87804.0,0.03]
[1766645086933,0.08520192,87824.0,87804.0,0.03]
[1766645088244,0.0113952,87818.0,87804.0,0.03]
[1766645093542,0.0113948,87821.0,87805.0,0.0113968]
[1766645093742,0.0113948,87821.0,87805.0,0.0413968]
[1766645097257,0.011395,87819.0,87805.0,0.0413968]
[1766645101160,0.0113953,87817.0,87805.0,0.03]
[1766645102666,0.0113949,87820.0,87805.0,0.03]
[1766645105159,0.0113951,87818.0,87805.0,0.03]
[1766645136008,0.0113948,87821.0,87805.0,0.03]
[1766645137704,0.0113948,87821.0,87805.0,0.0413967]
[1766645146218,0.011395,87819.0,87805.0,0.03]
[1766645195557,0.011395,87819.0,87806.0,0.0113967]
[1766645195854,0.011395,87819.0,87806.0,0.0413967]
[1766645200758,0.0113947,87822.0,87806.0,0.0413967]
[1766645204966,0.0113949,87820.0,87806.0,0.0413967]
[1766645246001,0.04096192,87825.0,87808.0,0.0113963]
[1766645246193,0.011394,87827.0,87812.0,0.0113958]
[1766645246393,0.011394,87827.0,87812.0,0.03]
[1766645247504,0.0113943,87825.0,87812.0,0.03]
[1766645251901,0.08805,87832.0,87812.0,0.03]
[1766645252106,0.0113926,87838.0,87822.0,0.0113945]
[1766645252402,0.0113909,87851.0,87822.0,0.03]
[1766645252593,0.0113901,87857.0,87838.0,0.0113925]
[1766645252798,0.0113901,87857.0,87838.0,0.0413925]
[1766645253000,0.0171901,87857.0,87838.0,0.0413925]
[1766645253601,0.0113905,87854.0,87838.0,0.03]
[1766645261606,0.0113911,87850.0,87838.0,0.03]
[1766645261807,0.0113916,87846.0,87838.0,0.03]
[1766645262009,0.0113918,87844.0,87838.0,0.03]
[1766645262314,0.0113918,87844.0,87838.0,0.01]
[1766645263218,0.0113914,87847.0,87838.0,0.01]
[1766645281831,0.011391,87850.0,87838.0,0.01]
[1766645282039,0.01396,87857.0,87838.0,0.01]
[1766645282040,0.0113907,87853.0,87838.0,0.01]
[1766645282422,0.04086485,87856.0,87838.0,0.01]
[1766645282627,0.01396,87857.0,87838.0,0.01]
[1766645282933,0.04086485,87858.0,87838.0,0.01]
[1766645283139,0.00425879,87899.0,87841.0,0.011392]
[1766645283140,0.0113899,87859.0,87841.0,0.011392]
[1766645283437,0.04314113,87863.0,87843.0,0.0113918]
[1766645283438,0.0113895,87862.0,87843.0,0.0113918]
[1766645283636,0.0113895,87862.0,87843.0,0.0413918]
[1766645283935,0.00227628,87863.0,87843.0,0.03]
[1766645284142,0.00227628,87863.0,87847.0,0.0113912]
[1766645284440,0.00227628,87863.0,87847.0,0.0413912]
[1766645284937,0.01366568,87863.0,87847.0,0.03]
[1766645285245,0.0113896,87861.0,87847.0,0.03]
[1766645286235,0.00227628,87863.0,87847.0,0.03]
[1766645287639,0.00227628,87863.0,87846.0,0.00017074]
[1766645287833,0.00227628,87863.0,87846.0,0.03017074]
[1766645288539,0.00227628,87863.0,87852.0,0.0113906]
[1766645288738,0.00227628,87863.0,87852.0,0.0413906]
[1766645290950,0.00227628,87863.0,87853.0,0.0113906]
[1766645291132,0.00227628,87863.0,87853.0,0.0413906]
[1766645291743,0.011388,87873.0,87856.0,0.0113902]
[1766645291936,0.01104,87870.0,87856.0,0.03]
[1766645292332,0.01104,87870.0,87856.0,0.0413902]
[1766645296239,0.0113885,87869.0,87856.0,0.03]
[1766645299443,0.01104,87870.0,87856.0,0.03]
[1766645299644,0.0113891,87865.0,87856.0,0.03]
[1766645301041,0.01104,87870.0,87846.0,0.00017074]
[1766645301241,0.01104,87870.0,87846.0,0.03017074]
[1766645301449,0.0113897,87860.0,87846.0,0.03017074]
[1766645315048,0.0113895,87862.0,87846.0,0.04156214]
[1766645315749,0.01104,87870.0,87849.0,0.011391]
[1766645315953,0.01104,87870.0,87849.0,0.03]
[1766645317258,0.0113888,87867.0,87851.0,0.0113907]
[1766645317555,0.0113891,87865.0,87851.0,0.03]
[1766645320958,0.0113893,87863.0,87851.0,0.03]
[1766645321855,0.0113891,87865.0,87851.0,0.03]
[1766645323061,0.0113889,87866.0,87851.0,0.03]
[1766645323264,0.01104,87870.0,87851.0,0.03]
[1766645323454,0.0113886,87869.0,87851.0,0.03]
[1766645324464,0.0113886,87869.0,87852.0,0.0113907]
[1766645324764,0.0113888,87867.0,87852.0,0.0413907]
[1766645324961,0.0113886,87869.0,87855.0,0.0113903]
[1766645325165,0.04048,87870.0,87855.0,0.0413903]
[1766645325366,0.04048,87870.0,87855.0,0.03]
[1766645326256,0.0518684,87870.0,87855.0,0.03]
[1766645327757,0.0113884,87870.0,87855.0,0.03]
[1766645328066,0.0113887,87868.0,87855.0,0.03]
[1766645331871,0.0113889,87866.0,87855.0,0.03]
[1766645335170,0.0113892,87864.0,87855.0,0.03]
[1766645340577,0.05696,87871.0,87855.0,0.03]
[1766645341678,0.0113893,87863.0,87855.0,0.03]
[1766645343273,0.0113889,87866.0,87855.0,0.03]
[1766645344778,0.0113892,87864.0,87855.0,0.03]
[1766645348995,0.05696,87871.0,87855.0,0.03]
[1766645349296,0.0113897,87860.0,87846.0,0.00017074]
[1766645349592,0.0113886,87869.0,87846.0,0.01017074]
[1766645349794,0.00017049,87866.0,87846.0,0.03]
[1766645350092,0.0113915,87846.0,87845.0,4e-08]
[1766645350495,0.0113892,87864.0,87845.0,4e-08]
[1766645350690,0.0113908,87852.0,87846.0,4e-08]
[1766645350895,0.0113908,87852.0,87846.0,0.03000004]
[1766645351486,0.0113904,87854.0,87846.0,0.03000004]
[1766645351889,0.00017049,87866.0,87846.0,0.03000004]
[1766645352897,0.0113905,87854.0,87846.0,0.03000004]
[1766645355499,0.0113913,87848.0,87846.0,4e-08]
[1766645355700,0.0113908,87851.0,87846.0,4e-08]
[1766645356197,0.0113906,87853.0,87846.0,4e-08]
[1766645364606,0.0113902,87856.0,87846.0,4e-08]
[1766645364805,0.0113905,87854.0,87846.0,4e-08]
[1766645370102,0.0113912,87849.0,87846.0,4e-08]
[1766645370704,0.00017049,87866.0,87846.0,4e-08]
[1766645370705,0.0113908,87852.0,87846.0,4e-08]
[1766645372107,0.00017049,87866.0,87846.0,4e-08]
[1766645374213,0.0113899,87859.0,87846.0,4e-08]
[1766645384613,0.0113897,87860.0,87846.0,4e-08]
[1766645385414,0.00017049,87866.0,87846.0,4e-08]
[1766645386312,0.0113899,87859.0,87846.0,4e-08]
[1766645391112,0.00017049,87866.0,87846.0,4e-08]
[1766645391513,0.0113896,87861.0,87846.0,0.01139144]
[1766645391918,0.0113896,87861.0,87846.0,0.01139154]
[1766645392214,0.0113898,87859.0,87846.0,4e-08]
[1766645395721,0.00017049,87866.0,87846.0,4e-08]
[1766645395922,0.0113898,87859.0,87846.0,4e-08]
[1766645400927,0.0113904,87855.0,87846.0,4e-08]
[1766645416337,0.0113906,87853.0,87846.0,4e-08]
[1766645418029,0.00017049,87866.0,87846.0,4e-08]
[1766645420238,0.0113901,87857.0,87846.0,4e-08]
[1766645421139,0.0113897,87860.0,87846.0,4e-08]
[1766645421439,0.05276,87864.0,87846.0,4e-08]
[1766645423242,0.0113897,87860.0,87846.0,4e-08]
[1766645426140,0.01139,87858.0,87846.0,4e-08]
[1766645427144,0.05276,87864.0,87846.0,4e-08]
[1766645428639,0.0113902,87856.0,87846.0,4e-08]
[1766645428938,0.05276,87864.0,87846.0,4e-08]
[1766645428939,0.011391,87850.0,87846.0,4e-08]
[1766645429132,0.0113894,87863.0,87846.0,4e-08]
[1766645429133,0.0113906,87853.0,87846.0,4e-08]
[1766645429326,0.0113909,87851.0,87846.0,4e-08]
[1766645429531,0.0113895,87862.0,87846.0,4e-08]
[1766645429932,0.0113909,87851.0,87846.0,4e-08]
[1766645433345,0.0113905,87854.0,87846.0,4e-08]
[1766645434337,0.0113901,87857.0,87846.0,4e-08]
[1766645439343,0.0113897,87860.0,87846.0,4e-08]
[1766645440754,0.01139,87858.0,87846.0,4e-08]
[1766645450257,0.0113902,87856.0,87846.0,4e-08]
[1766645452859,0.02728,87863.0,87846.0,4e-08]
[1766645453761,0.0113901,87857.0,87846.0,4e-08]
[1766645457562,0.0113904,87855.0,87846.0,4e-08]
[1766645459361,0.01139,87858.0,87846.0,4e-08]
[1766645459562,0.0113907,87853.0,87836.0,0.0113928]
[1766645459766,0.0113907,87853.0,87838.0,0.0113924]
[1766645460060,0.0113907,87853.0,87838.0,0.03]
[1766645460652,0.0113907,87853.0,87839.0,0.0113924]
[1766645460853,0.0113902,87856.0,87839.0,0.0413924]
[1766645461052,0.02526561,87855.0,87839.0,0.0413924]
[1766645461254,0.02526561,87854.0,87833.0,0.00227706]
[1766645461454,0.02526561,87854.0,87786.0,0.1186]
[1766645461455,0.011393,87834.0,87820.0,0.05124]
[1766645461658,0.0113931,87834.0,87820.0,0.06124]
[1766645461960,0.04128,87853.0,87803.0,0.00227784]
[1766645462266,0.0113937,87829.0,87820.0,0.057]
[1766645462463,0.0113937,87829.0,87821.0,0.057]
[1766645462653,0.0113937,87829.0,87821.0,0.087]
[1766645473459,0.00017074,87845.0,87821.0,0.087]
[1766645473762,0.0113923,87840.0,87821.0,0.087]
[1766645473960,0.0113923,87840.0,87821.0,0.0983947]
[1766645474553,0.0113919,87844.0,87821.0,0.0983947]
[1766645474757,0.00017074,87845.0,87821.0,0.087]
[1766645475363,0.00017074,87845.0,87826.0,0.011394]
[1766645475564,0.00017074,87845.0,87827.0,0.05416]
[1766645475864,0.00017074,87845.0,87827.0,0.08416]
[1766645476678,0.00017074,87845.0,87828.0,0.0113937]
[1766645476977,0.00017074,87845.0,87828.0,0.0413937]
[1766645477472,0.00017074,87845.0,87829.0,0.0113936]
[1766645477678,0.0046,87857.0,87834.0,0.0113929]
[1766645477870,0.0046,87857.0,87836.0,0.0113927]
[1766645477871,0.0113905,87854.0,87836.0,0.0113927]
[1766645478067,0.01139,87858.0,87839.0,0.0113923]
[1766645478376,0.01728,87860.0,87839.0,0.0113923]
[1766645478377,0.0113902,87856.0,87839.0,0.0413923]
[1766645478676,0.02528161,87855.0,87839.0,0.03]
[1766645478879,0.02528161,87855.0,87839.0,0.03017074]
[1766645479670,0.01156094,87856.0,87839.0,0.03017074]
[1766645481266,0.0113906,87853.0,87839.0,0.03017074]
[1766645482179,0.0113909,87851.0,87839.0,0.03017074]
[1766645491881,0.0113907,87852.0,87839.0,0.03017074]
[1766645492069,0.00017074,87856.0,87839.0,0.03017074]
[1766645492275,0.02531828,87855.0,87839.0,0.03017074]
[1766645492477,0.02531828,87854.0,87839.0,0.03017074]
[1766645492680,0.02531828,87853.0,87839.0,0.03017074]
[1766645492974,0.00017074,87856.0,87839.0,0.03017074]
[1766645493285,0.02531834,87855.0,87839.0,0.03017074]
[1766645493477,0.02531834,87854.0,87839.0,0.03017074]
[1766645493678,0.02531834,87853.0,87839.0,0.03017074]
[1766645493900,0.00017074,87856.0,87839.0,0.03017074]
[1766645494082,0.02531899,87855.0,87839.0,0.03017074]
[1766645494386,0.02531899,87854.0,87839.0,0.03017074]
[1766645494587,0.02531899,87853.0,87839.0,0.03017074]
[1766645494786,0.00017074,87856.0,87839.0,0.03017074]
[1766645494986,0.02531999,87855.0,87839.0,0.03017074]
[1766645495189,0.0113909,87851.0,87839.0,0.03017074]
[1766645501187,0.0253428,87850.0,87839.0,0.03017074]
[1766645501392,0.0113909,87851.0,87839.0,0.03017074]
[1766645501597,0.0253428,87850.0,87839.0,0.03017074]
[1766645501795,0.0113905,87854.0,87839.0,0.03017074]
[1766645501993,0.0253427,87853.0,87839.0,0.03017074]
[1766645502188,0.0253427,87852.0,87839.0,0.03017074]
[1766645502390,0.0253427,87851.0,87839.0,0.03017074]
[1766645502691,0.0253427,87850.0,87839.0,0.03017074]
[1766645502986,0.0113905,87854.0,87839.0,0.03017074]
[1766645503182,0.02535207,87853.0,87839.0,0.03017074]
[1766645503383,0.02535207,87852.0,87839.0,0.03017074]
[1766645503585,0.02535207,87851.0,87839.0,0.03017074]
[1766645503784,0.02536186,87850.0,87839.0,0.03017074]
[1766645503992,0.02536186,87849.0,87839.0,0.03017074]
[1766645504190,0.0253703,87848.0,87839.0,0.03017074]
[1766645504393,0.0113905,87854.0,87839.0,0.03017074]
[1766645504593,0.0113907,87852.0,87839.0,0.03017074]
[1766645504894,0.02537018,87851.0,87839.0,0.03017074]
[1766645505094,0.02537018,87850.0,87839.0,0.03017074]
[1766645505294,0.02537018,87849.0,87839.0,0.03017074]
[1766645505487,0.0113912,87848.0,87839.0,0.03017074]
[1766645505687,0.0113917,87845.0,87839.0,0.01000004]
[1766645506293,0.0113918,87844.0,87839.0,4e-08]
[1766645506492,0.02538294,87843.0,87825.0,0.057]
[1766645506689,0.0113926,87838.0,87825.0,0.087]
[1766645507089,0.02488,87849.0,87825.0,0.087]
[1766645507090,0.0113921,87842.0,87825.0,0.087]
[1766645507286,0.0113921,87842.0,87825.0,0.08717074]
[1766645511402,0.0113916,87845.0,87825.0,0.09856484]
[1766645511589,0.02537372,87844.0,87825.0,0.09856484]
[1766645511791,0.02537372,87843.0,87825.0,0.09856484]
[1766645512101,0.0113916,87845.0,87825.0,0.09856484]
[1766645512301,0.02537246,87844.0,87825.0,0.09856484]
[1766645512501,0.0113916,87845.0,87825.0,0.09856484]
[1766645512703,0.0113919,87843.0,87825.0,0.09856484]
[1766645513396,0.02488,87849.0,87825.0,0.09856484]
[1766645513594,0.02537148,87848.0,87825.0,0.09856484]
[1766645513791,0.02537148,87847.0,87825.0,0.09856484]
[1766645513992,0.02537148,87846.0,87825.0,0.09856484]
[1766645514195,0.02537148,87845.0,87825.0,0.09856484]
[1766645514393,0.02537148,87844.0,87825.0,0.09856484]
[1766645514595,0.02488,87849.0,87825.0,0.09856484]
[1766645514796,0.02537074,87848.0,87825.0,0.09856484]
[1766645514997,0.02537074,87847.0,87825.0,0.09856484]
[1766645515197,0.0113918,87844.0,87825.0,0.09856484]
[1766645516607,0.02536973,87843.0,87825.0,0.09856484]
[1766645516909,0.0113918,87844.0,87825.0,0.09856484]
[1766645517108,0.02536974,87843.0,87825.0,0.09856484]
[1766645517308,0.0113918,87844.0,87825.0,0.09856484]
[1766645517512,0.02536943,87843.0,87825.0,0.09856484]
[1766645517712,0.0113918,87844.0,87825.0,0.09856484]
[1766645517908,0.02536943,87843.0,87825.0,0.09856484]
[1766645518110,0.0113918,87844.0,87825.0,0.09856484]
[1766645518303,0.0253692,87843.0,87825.0,0.09856484]
[1766645518503,0.0113918,87844.0,87825.0,0.09856484]
[1766645518704,0.0253692,87843.0,87827.0,0.0113939]
[1766645518905,0.0113918,87844.0,87827.0,0.0413939]
[1766645519202,0.0253692,87843.0,87827.0,0.0413939]
[1766645519401,0.0113918,87844.0,87827.0,0.0413939]
[1766645519602,0.02536906,87843.0,87827.0,0.0413939]
[1766645519803,0.0113918,87844.0,87827.0,0.0413939]
[1766645520003,0.02536906,87843.0,87827.0,0.0413939]
[1766645520303,0.0113918,87844.0,87827.0,0.0413939]
[1766645520504,0.02488,87849.0,87830.0,0.0113935]
[1766645520704,0.02488,87849.0,87830.0,0.0413935]
[1766645521507,0.02488,87849.0,87832.0,0.0113932]
[1766645521703,0.02488,87849.0,87832.0,0.0413932]
[1766645522504,0.0113913,87848.0,87832.0,0.0413932]
[1766645524018,0.02488,87849.0,87832.0,0.0413932]
[1766645524313,0.0113913,87848.0,87832.0,0.0413932]
[1766645525913,0.02488,87849.0,87832.0,0.0413932]
[1766645526108,0.0362712,87849.0,87832.0,0.0413932]
[1766645528213,0.0113912,87849.0,87832.0,0.0413932]
[1766645529818,0.0113908,87852.0,87835.0,0.0113929]
[1766645530010,0.0113908,87852.0,87835.0,0.0413929]
[1766645532519,0.02526656,87851.0,87835.0,0.0413929]
[1766645532722,0.02526656,87850.0,87835.0,0.0413929]
[1766645532910,0.02526656,87849.0,87835.0,0.0413929]
[1766645533112,0.02526656,87848.0,87835.0,0.0413929]
[1766645533311,0.02526656,87847.0,87835.0,0.0413929]